bitfinex-derivatives/quotes_SOLF0:USTF0_20240927
["timestamp","ask_amount","ask_price","bid_price","bid_amount"]
[1727407991884,15.80160682,154.79,154.74,9.97]
[1727407992090,2.6792,154.79,154.74,9.97]
[1727407992392,12.6492,154.79,154.74,9.97]
[1727407992687,15.91603997,154.79,154.74,9.97]
[1727407993284,2.6792,154.79,154.74,9.97]
[1727407993490,12.6492,154.79,154.74,9.97]
[1727407993892,3.2304,154.76,154.74,9.97]
[1727407994090,12.6492,154.79,154.74,9.97]
[1727407994295,2.6792,154.79,154.75,9.97]
[1727407994491,2.6792,154.79,154.67,10.85655666]
[1727407994492,3.24968901,154.88,154.77,9.97]
[1727407994691,9.97,154.82,154.77,9.97]
[1727407994887,13.25343188,154.82,154.77,9.97]
[1727407995193,2.7122,154.87,154.79,9.97]
[1727407995390,0.99926686,154.86,154.79,9.97]
[1727407995587,13.23371642,154.85,154.79,9.97]
[1727407995989,13.23371642,154.85,154.8,13.1994]
[1727407995990,3.2285,154.85,154.8,13.1994]
[1727407996191,12.6822,154.87,154.82,9.97]
[1727407996395,2.7122,154.87,154.83,9.97]
[1727407996596,3.2282,154.86,154.83,9.97]
[1727407996791,3.2282,154.86,154.84,9.97]
[1727407997195,3.228,154.87,154.84,9.97]
[1727407997397,9.97,154.89,154.84,9.97]
[1727407998798,3.17820971,154.9,154.84,9.97]
[1727407999098,9.97,154.89,154.84,9.97]
[1727407999498,9.97,154.89,154.83,9.97]
[1727408000297,9.97,154.89,154.84,9.97]
[1727408000492,2.6506,154.94,154.87,9.97]
[1727408000693,0.99862758,154.93,154.88,9.97]
[1727408000896,12.6206,154.94,154.88,9.97]
[1727408001294,3.2268,154.93,154.92,9.97]
[1727408002301,9.97,154.96,154.9,9.97]
[1727408002600,2.5665,155.0,154.9,9.97]
[1727408002792,9.97,154.95,154.9,9.97]
[1727408003199,3.2448476,154.98,154.92,9.97]
[1727408003402,3.2267,154.93,154.92,9.97]
[1727408003700,9.97,154.96,154.91,9.97]
[1727408004205,9.97,154.93,154.88,9.97]
[1727408004905,9.97,154.9,154.83,83.78945826]
[1727408005104,1.2892,154.92,154.84,9.97]
[1727408005305,3.2284,154.86,154.84,9.97]
[1727408005603,9.97,154.89,154.84,9.97]
[1727408006398,9.97,154.88,154.83,93.75945826]
[1727408007902,3.2284,154.85,154.83,93.75945826]
[1727408008400,3.2283,154.86,154.83,93.75945826]
[1727408008605,3.2283,154.86,154.84,9.97]
[1727408009900,11.2432,154.91,154.85,9.97]
[1727408010803,3.2279,154.88,154.85,9.97]
[1727408011505,3.2279,154.88,154.83,87.01825826]
[1727408011506,3.2276,154.89,154.87,9.97]
[1727408011699,3.2276,154.89,154.88,9.97]
[1727408012002,2.7237,154.97,154.88,9.97]
[1727408012206,12.6937,154.97,154.92,9.97]
[1727408012405,3.2267,154.94,154.9,15.5]
[1727408013208,3.2269,154.93,154.9,15.5]
[1727408014506,2.7237,154.97,154.9,15.5]
[1727408015306,3.2267,154.94,154.9,15.5]
[1727408016205,2.7237,154.97,154.9,15.5]
[1727408016609,3.2266,154.94,154.9,15.5]
[1727408016807,2.7237,154.97,154.9,15.5]
[1727408017108,3.2267,154.94,154.9,15.5]
[1727408018110,3.2267,154.93,154.9,15.5]
[1727408018301,2.7237,154.97,154.9,15.5]
[1727408019809,3.2267,154.94,154.9,15.5]
[1727408020509,3.2269,154.93,154.9,15.5]
[1727408023207,2.7237,154.97,154.9,15.5]
[1727408024211,2.7237,154.97,154.89,1.2904]
[1727408024403,3.2272,154.91,154.89,1.2904]
[1727408025010,2.7237,154.97,154.89,1.2904]
[1727408025511,3.2271,154.92,154.89,1.2904]
[1727408025909,2.7237,154.97,154.89,1.2904]
[1727408026109,3.227,154.92,154.89,1.2904]
[1727408030120,3.2264,154.95,154.89,1.2904]
[1727408030420,2.7237,154.97,154.9,15.5]
[1727408031018,3.2032866,154.99,154.9,15.5]
[1727408031218,15.5,155.0,154.9,18.7273]
[1727408031613,18.75745544,155.0,154.9,18.7273]
[1727408032021,3.25745544,155.0,154.9,18.7273]
[1727408032319,9.92,154.99,154.94,9.92]
[1727408032521,2.6891,155.07,154.94,9.92]
[1727408032711,9.92,155.0,154.94,9.92]
[1727408033112,6.4483,155.06,154.94,9.92]
[1727408033417,9.92,155.0,154.94,9.92]
[1727408033613,9.92,155.0,154.95,9.92]
[1727408034813,3.2262,154.96,154.95,9.92]
[1727408036319,3.2264,154.95,154.89,4.0383]
[1727408036523,3.2264,154.95,154.93,9.92]
[1727408038623,6.4483,155.06,154.94,9.92]
[1727408038825,9.92,155.01,154.96,9.92]
[1727408039822,3.226,154.97,154.96,9.92]
[1727408041326,3.2258,154.98,154.96,9.92]
[1727408041722,9.92,155.01,154.96,9.92]
[1727408042130,9.92,154.98,154.89,4.0383]
[1727408042325,9.92,154.98,154.92,9.92]
[1727408042828,3.2267,154.93,154.92,9.92]
[1727408043227,9.92,154.93,154.89,1.2904]
[1727408043422,9.92,154.92,154.89,1.2904]
[1727408043826,9.92,154.92,154.86,9.92]
[1727408044026,3.2277,154.89,154.86,9.92]
[1727408044823,3.2277,154.89,154.87,9.92]
[1727408045031,9.92,154.92,154.87,9.92]
[1727408045332,1.2967,154.98,154.87,9.92]
[1727408045535,3.2276,154.89,154.87,9.92]
[1727408050431,3.2278,154.88,154.85,1.267]
[1727408050735,3.2278,154.88,154.87,9.92]
[1727408054034,3.2276,154.89,154.87,9.92]
[1727408054740,6.4519,154.97,154.88,9.92]
[1727408055037,9.92,154.94,154.88,9.92]
[1727408055229,3.2276,154.89,154.88,9.92]
[1727408055734,3.2274,154.9,154.88,9.92]
[1727408057534,3.2276,154.89,154.88,9.92]
[1727408057837,9.92,154.92,154.85,1.267]
[1727408058139,9.92,154.92,154.87,9.92]
[1727408058633,3.2278,154.88,154.85,1.267]
[1727408058832,3.2278,154.88,154.87,9.92]
[1727408059236,3.2276,154.89,154.87,9.92]
[1727408060836,3.2274,154.9,154.87,9.92]
[1727408061037,3.2274,154.9,154.89,9.92]
[1727408062429,3.2276,154.89,154.85,4.4953]
[1727408062631,3.2276,154.89,154.88,9.92]
[1727408068642,9.92,154.91,154.85,1.267]
[1727408068843,1.2967,154.98,154.85,1.267]
[1727408068844,9.92,154.89,154.85,1.267]
[1727408069547,3.2281,154.87,154.85,1.267]
[1727408070145,3.2282,154.86,154.85,1.267]
[1727408070743,3.2282,154.86,154.85,11.187]
[1727408072441,1.2967,154.98,154.83,83.78945826]
[1727408072442,3.2286,154.84,154.83,83.78945826]
[1727408072647,9.92,154.86,154.81,9.92]
[1727408073542,3.2287,154.84,154.81,9.92]
[1727408073850,9.92,154.86,154.81,9.92]
[1727408074245,3.2288,154.84,154.81,9.92]
[1727408074644,9.92,154.86,154.81,9.92]
[1727408074840,3.2287,154.84,154.81,9.92]
[1727408076643,3.2284,154.85,154.81,9.92]
[1727408076946,11.2311,154.87,154.82,9.92]
[1727408078847,3.2287,154.84,154.81,9.92]
[1727408079251,9.92,154.86,154.78,1.385]
[1727408079447,9.92,154.85,154.79,9.92]
[1727408079746,9.92,154.83,154.79,9.92]
[1727408080244,9.92,154.83,154.77,9.92]
[1727408081551,3.2298,154.79,154.76,9.92]
[1727408082145,9.92,154.8,154.74,11.2467]
[1727408082348,9.92,154.8,154.74,1.3267]
[1727408082646,9.92,154.78,154.74,1.3267]
[1727408082844,9.92,154.78,154.73,9.92]
[1727408083044,9.92,154.75,154.7,9.92]
[1727408083649,9.92,154.74,154.69,1.3038]
[1727408083851,3.2312,154.72,154.69,1.3038]
[1727408084348,9.92,154.74,154.69,1.3038]
[1727408084545,3.2314,154.71,154.69,1.3038]
[1727408086653,3.2312,154.72,154.69,1.3038]
[1727408087048,3.231,154.73,154.69,1.3038]
[1727408087853,3.231,154.73,154.7,9.92]
[1727408089151,3.2308,154.74,154.71,9.92]
[1727408089347,9.92,154.76,154.71,9.92]
[1727408091756,3.2309,154.73,154.71,9.92]
[1727408095254,3.23072982,154.78,154.71,9.92]
[1727408095459,9.92,154.76,154.71,9.92]
[1727408096859,3.2308,154.74,154.71,9.92]
[1727408099858,3.2308,154.74,154.69,4.5355]
[1727408099859,3.231,154.73,154.69,1.3038]
[1727408100061,3.231,154.73,154.69,11.2238]
[1727408100662,3.2308,154.74,154.71,9.92]
[1727408100866,2.61,154.79,154.72,9.92]
[1727408100867,9.92,154.77,154.72,9.92]
[1727408101064,9.92,154.81,154.76,9.92]
[1727408101571,3.2298,154.79,154.76,9.92]
[1727408101969,9.92,154.81,154.76,9.92]
[1727408102168,9.92,154.79,154.74,9.92]
[1727408102475,3.2297,154.79,154.76,9.92]
[1727408102670,3.2297,154.79,154.69,3.9808]
[1727408102671,1.3912,154.84,154.78,9.92]
[1727408102879,1.3912,154.84,154.8,9.92]
[1727408103271,9.92,154.85,154.8,9.92]
[1727408103678,9.92,154.86,154.81,9.92]
[1727408104176,3.2285,154.85,154.81,9.92]
[1727408104577,9.92,154.87,154.81,9.92]
[1727408104777,9.92,154.87,154.83,9.92]
[1727408105370,9.92,154.88,154.84,9.92]
[1727408105975,1.3632,154.93,154.82,9.92]
[1727408105976,9.92,154.87,154.82,9.92]
[1727408106381,15.5,154.89,154.79,15.5]
[1727408106877,3.2282,154.86,154.79,18.7295]
[1727408108981,3.2282,154.86,154.8,3.2294]
[1727408109178,3.2282,154.86,154.81,1.3636]
[1727408111483,15.5,154.89,154.81,1.3636]
[1727408111877,3.2286,154.85,154.81,1.3636]
[1727408112380,15.5,154.89,154.81,1.3636]
[1727408113273,3.2286,154.84,154.81,1.3636]
[1727408120081,18.69377505,154.91,154.81,16.8636]
[1727408120281,15.5,154.91,154.81,16.8636]
[1727408120482,3.15384642,154.9,154.81,16.8636]
[1727408120684,3.2284,154.86,154.81,20.0927]
[1727408125481,15.5,154.91,154.83,3.2286]
[1727408125482,3.2279,154.88,154.83,3.2286]
[1727408125686,3.2279,154.88,154.83,18.7286]
[1727408126385,3.2279,154.88,154.86,9.92]
[1727408126579,3.228,154.87,154.86,9.92]
[1727408126778,9.92,154.91,154.86,9.92]
[1727408127179,3.2278,154.88,154.86,9.92]
[1727408127588,9.92,154.91,154.86,9.92]
[1727408128893,3.2279,154.88,154.86,9.92]
[1727408130090,3.228,154.87,154.82,2.6205]
[1727408130392,3.228,154.87,154.82,9.92]
[1727408130393,9.92,154.87,154.82,9.92]
[1727408130795,3.2283,154.86,154.82,9.92]
[1727408130997,9.92,154.87,154.82,9.92]
[1727408132395,3.2285,154.85,154.82,9.92]
[1727408132999,9.92,154.85,154.81,1.3636]
[1727408133996,3.2286,154.84,154.81,1.3636]
[1727408135108,9.92,154.85,154.8,9.92]
[1727408135295,3.16506453,154.91,154.8,9.92]
[1727408135491,9.92,154.87,154.77,3.9789]
[1727408135700,9.92,154.85,154.8,9.92]
[1727408136202,9.92,154.85,154.81,9.92]
[1727408136395,9.92,154.87,154.82,9.92]
[1727408137200,3.2286,154.85,154.82,9.92]
[1727408137500,9.92,154.87,154.82,9.92]
[1727408137899,9.92,154.87,154.81,9.92]
[1727408138398,3.2286,154.84,154.81,9.92]
[1727408139898,9.92,154.87,154.81,9.92]
[1727408139899,3.2288,154.83,154.81,9.92]
[1727408143498,3.2287,154.84,154.81,9.92]
[1727408154004,3.2289,154.83,154.77,3.9789]
[1727408154207,3.2289,154.83,154.8,9.92]
[1727408154606,3.2291,154.82,154.78,3.2297]
[1727408154809,3.2291,154.82,154.79,9.92]
[1727408156807,3.2292,154.81,154.79,9.92]
[1727408157404,3.2291,154.82,154.79,13.1496]
[1727408157607,9.92,154.85,154.8,9.92]
[1727408158213,3.2291,154.82,154.8,9.92]
[1727408158813,3.2289,154.83,154.8,9.92]
[1727408159915,3.2289,154.83,154.8,13.1494]
[1727408160112,3.2289,154.83,154.8,9.92]
[1727408160813,3.2291,154.82,154.8,9.92]
[1727408161014,3.2291,154.82,154.77,3.9789]
[1727408161214,3.2292,154.81,154.78,3.2297]
[1727408161415,3.2292,154.81,154.79,9.92]
[1727408161911,3.2294,154.8,154.79,9.92]
[1727408162215,9.92,154.82,154.77,11.3186]
[1727408162420,3.2298,154.79,154.77,11.3186]
[1727408163710,3.2295,154.8,154.78,9.92]
[1727408165514,3.2293,154.81,154.78,9.92]
[1727408165907,9.92,154.84,154.78,9.92]
[1727408166110,3.2295,154.8,154.78,9.92]
[1727408167116,3.2293,154.81,154.78,9.92]
[1727408170024,9.92,154.81,154.77,1.3986]
[1727408170320,9.92,154.78,154.71,9.31516584]
[1727408170519,9.92,154.75,154.72,6.79949666]
[1727408170714,9.92,154.75,154.69,9.92]
[1727408170916,9.92,154.73,154.69,9.92]
[1727408171122,9.92,154.73,154.68,11.3152]
[1727408171916,3.2313,154.72,154.69,9.92]
[1727408172924,3.2313,154.72,154.68,11.3152]
[1727408173122,3.2313,154.71,154.68,11.3152]
[1727408173726,3.17556909,154.78,154.7,9.92]
[1727408173922,9.92,154.77,154.72,9.92]
[1727408174426,3.2306,154.75,154.72,9.92]
[1727408176222,1.3309,154.79,154.74,9.92]
[1727408176421,9.92,154.81,154.76,9.92]
[1727408176827,3.2295,154.8,154.76,9.92]
[1727408177022,3.2295,154.8,154.75,3.2304]
[1727408177023,3.2295,154.8,154.77,9.92]
[1727408177835,3.2293,154.81,154.77,9.92]
[1727408179825,3.2291,154.82,154.77,9.92]
[1727408180025,12.5423,154.85,154.8,9.92]
[1727408181433,3.229,154.83,154.8,9.92]
[1727408184737,12.5423,154.85,154.8,9.92]
[1727408184738,3.2291,154.82,154.8,9.92]
[1727408184938,3.2291,154.82,154.79,9.92]
[1727408185533,3.2293,154.81,154.79,9.92]
[1727408185838,9.92,154.84,154.79,9.92]
[1727408186935,3.2291,154.82,154.79,9.92]
[1727408190439,6.4541,154.92,154.8,9.92]
[1727408190645,9.92,154.88,154.83,9.92]
[1727408190842,3.2284,154.85,154.81,9.92]
[1727408191339,3.2284,154.86,154.83,9.92]
[1727408191938,3.2281,154.87,154.83,9.92]
[1727408192134,9.92,154.88,154.83,9.92]
[1727408193341,3.26180782,154.89,154.84,9.92]
[1727408193540,9.92,154.9,154.84,9.92]
[1727408193937,3.2281,154.87,154.84,9.92]
[1727408195141,13.21326759,154.9,154.84,9.92]
[1727408195745,3.2279,154.88,154.84,9.92]
[1727408197049,3.2279,154.88,154.85,9.92]
[1727408201650,3.2279,154.88,154.8,4.50672579]
[1727408201651,3.2283,154.86,154.8,1.2926]
[1727408201950,9.92,154.85,154.81,9.92]
[1727408202148,9.92,154.87,154.81,9.92]
[1727408202747,9.92,154.88,154.84,9.92]
[1727408202951,9.92,154.9,154.84,9.92]
[1727408203651,3.228,154.88,154.84,9.92]
[1727408204054,9.92,154.9,154.84,9.92]
[1727408204252,3.2281,154.87,154.84,9.92]
[1727408207356,9.92,154.89,154.83,9.92]
[1727408207857,3.2283,154.86,154.83,9.92]
[1727408210456,9.92,154.86,154.8,1.2926]
[1727408210857,9.92,154.86,154.81,9.92]
[1727408211457,3.2287,154.84,154.81,9.92]
[1727408212764,3.2285,154.85,154.82,9.92]
[1727408214562,3.2286,154.84,154.82,9.92]
[1727408214858,5.86898042,154.91,154.83,9.92]
[1727408215163,3.2283,154.86,154.83,9.92]
[1727408215761,3.2284,154.85,154.8,1.2926]
[1727408216064,3.2284,154.85,154.82,9.92]
[1727408216459,3.2283,154.86,154.82,9.92]
[1727408218161,3.2281,154.87,154.82,13.149]
[1727408218461,3.2281,154.87,154.84,9.92]
[1727408218860,3.2276,154.89,154.84,9.92]
[1727408219064,15.78898042,154.91,154.85,9.92]
[1727408219562,3.2279,154.88,154.85,9.92]
[1727408221766,9.92,154.89,154.84,11.2735]
[1727408221962,9.92,154.86,154.8,1.2926]
[1727408222168,9.92,154.86,154.8,11.2126]
[1727408222371,9.92,154.86,154.82,9.92]
[1727408224872,13.1482,154.86,154.82,9.92]
[1727408227679,13.1482,154.86,154.8,4.522]
[1727408227980,9.92,154.83,154.79,9.92]
[1727408228173,5.86898042,154.91,154.76,1.3382]
[1727408228374,9.92,154.83,154.78,13.1497]
[1727408229081,13.1488,154.83,154.78,13.1497]
[1727408229777,9.92,154.83,154.79,3.2296]
[1727408229981,3.2287,154.84,154.8,9.92]
[1727408230183,9.92,154.85,154.8,9.92]
[1727408230581,9.92,154.86,154.8,9.92]
[1727408230779,9.92,154.86,154.82,9.92]
[1727408231580,9.92,154.87,154.82,9.92]
[1727408232882,3.2283,154.86,154.82,9.92]
[1727408233079,5.86898042,154.91,154.83,9.92]
[1727408233284,3.2278,154.88,154.83,9.92]
[1727408233474,9.92,154.89,154.85,9.92]
[1727408233984,3.2277,154.89,154.85,9.92]
[1727408234579,12.5561,154.91,154.85,9.92]
[1727408234780,6.449,155.04,154.9,9.92]
[1727408235087,9.92,154.98,154.92,9.92]
[1727408235283,13.1458,154.98,154.93,9.92]
[1727408236585,3.17524904,155.01,154.93,9.92]
[1727408236586,3.2255,154.99,154.93,9.92]
[1727408236779,13.1455,154.99,154.93,9.92]
[1727408236984,3.2255,154.99,154.93,9.92]
[1727408237182,13.1455,154.99,154.93,9.92]
[1727408237583,2.6104,155.03,154.95,3.2263]
[1727408237780,9.92,155.01,154.89,4.0633]
[1727408238096,9.92,155.01,154.95,9.92]
[1727408238685,3.2253,155.0,154.95,9.92]
[1727408239983,3.2255,154.99,154.95,9.92]
[1727408242688,2.6104,155.03,154.97,9.92]
[1727408242887,2.6104,155.03,154.98,9.92]
[1727408243386,3.2249,155.02,154.98,9.92]
[1727408244288,3.2249,155.02,154.96,18.7159]
[1727408244890,3.2249,155.02,154.97,1.3183]
[1727408247688,15.49,155.06,154.97,1.3183]
[1727408247689,18.714,155.06,154.97,1.3183]
[1727408247899,0.99768557,155.05,155.01,15.49]
[1727408248191,2.6655,155.14,155.02,3.2248]
[1727408248390,15.49,155.12,155.02,3.2248]
[1727408249395,0.99738946,155.11,155.02,3.2248]
[1727408249590,3.2237,155.08,155.02,3.2248]
[1727408249990,0.99742707,155.13,155.01,18.715]
[1727408250188,15.49,155.11,155.01,18.715]
[1727408250386,0.99734726,155.1,155.01,18.715]
[1727408250788,3.2239,155.07,155.01,18.715]
[1727408250991,15.49,155.11,155.01,18.715]
[1727408251190,0.99734897,155.1,155.01,18.715]
[1727408251395,3.2237,155.08,155.01,18.715]
[1727408253097,3.224,155.06,155.01,15.49]
[1727408253298,18.79483077,155.09,154.99,15.49]
[1727408253502,15.49,155.09,154.99,15.49]
[1727408253698,3.224,155.06,154.99,18.7154]
[1727408254696,3.2243,155.05,154.99,3.2254]
[1727408254892,3.2243,155.05,154.99,18.7154]
[1727408256396,15.49,155.05,154.97,1.3183]
[1727408256595,3.29611482,155.04,154.97,1.3183]
[1727408258701,3.2249,155.02,154.97,1.3183]
[1727408259202,3.2246,155.04,154.97,16.8083]
[1727408259599,3.2246,155.04,154.98,3.2255]
[1727408261105,5.97480764,155.07,154.99,3.2254]
[1727408261106,3.2243,155.05,154.99,3.2254]
[1727408261502,3.2243,155.05,154.99,18.7154]
[1727408262407,3.2241,155.06,155.0,3.2252]
[1727408262810,3.2241,155.06,154.99,15.49]
[1727408263213,3.2239,155.07,154.99,15.49]
[1727408263414,3.2239,155.07,155.01,15.49]
[1727408263715,3.2239,155.07,155.01,15.43368917]
[1727408263907,3.2239,155.07,155.01,18.65858917]
[1727408267310,3.30384964,155.09,155.01,15.43368917]
[1727408268016,3.224,155.07,155.01,18.65868917]
[1727408268412,3.224,155.07,155.03,9.91]
[1727408269717,9.91,155.06,155.01,9.91]
[1727408270119,3.2244,155.05,155.01,9.91]
[1727408271317,13.1341,155.06,155.01,9.91]
[1727408271716,3.2239,155.07,155.03,9.91]
[1727408272515,16.28786606,155.08,155.03,9.91]
[1727408272715,13.06416606,155.08,155.03,9.91]
[1727408273618,13.1337,155.08,155.03,13.1346]
[1727408274711,13.06649747,155.08,155.03,13.1346]
[1727408275321,3.2237,155.08,155.05,9.91]
[1727408275716,2.7258,155.11,155.05,9.91]
[1727408275920,12.6358,155.11,155.06,9.91]
[1727408276621,3.2233,155.1,155.06,9.91]
[1727408279025,80.61429537,155.2,155.09,9.91]
[1727408279227,3.61451801,155.16,155.09,9.91]
[1727408279521,9.91,155.15,155.09,9.91]
[1727408279722,3.2225,155.14,155.09,9.91]
[1727408280323,9.91,155.13,155.08,9.91]
[1727408280525,13.1327,155.13,155.08,9.91]
[1727408280923,9.91,155.13,155.08,9.91]
[1727408281317,3.2229,155.12,155.08,9.91]
[1727408283329,3.2226,155.13,155.08,9.91]
[1727408284824,3.2228,155.12,155.08,9.91]
[1727408285024,13.1328,155.12,155.08,9.91]
[1727408285224,9.91,155.12,155.08,9.91]
[1727408285530,13.1329,155.12,155.08,9.91]
[1727408285726,3.2229,155.12,155.08,9.91]
[1727408286133,3.2226,155.13,155.09,9.91]
[1727408286833,3.2224,155.14,155.11,9.91]
[1727408288335,3.2224,155.14,155.07,1.3498]
[1727408288530,3.19429537,155.2,155.13,9.91]
[1727408288831,9.91,155.17,155.13,9.91]
[1727408289027,3.2221,155.16,155.13,9.91]
[1727408290234,3.2219,155.17,155.14,9.91]
[1727408290935,3.2215,155.18,155.14,9.91]
[1727408291228,3.2215,155.18,155.15,9.91]
[1727408291429,3.2213,155.2,155.15,9.91]
[1727408291830,2.6333,155.22,155.16,9.91]
[1727408292032,230.4372,155.33,155.19,9.91]
[1727408292338,9.91,155.25,155.19,9.91]
[1727408292531,0.99626133,155.24,155.19,9.91]
[1727408292731,13.06136805,155.25,155.19,9.91]
[1727408293141,9.91,155.25,155.21,9.91]
[1727408294036,3.2204,155.24,155.21,9.91]
[1727408294441,3.2204,155.24,155.18,15.47]
[1727408295439,4.21668782,155.23,155.18,15.47]
[1727408295741,15.47,155.25,155.15,15.47]
[1727408295937,3.2207,155.22,155.15,15.47]
[1727408297643,3.2207,155.22,155.15,18.692]
[1727408298835,18.62836536,155.25,155.15,15.47]
[1727408299047,0.99618881,155.24,155.15,15.47]
[1727408299246,0.99619557,155.23,155.15,15.47]
[1727408299448,3.2211,155.21,155.15,15.47]
[1727408300043,3.2212,155.2,155.15,18.6921]
[1727408302343,2.671,155.27,155.17,15.47]
[1727408302548,0.99615597,155.26,155.17,15.47]
[1727408302943,4.20079841,155.26,155.17,15.47]
[1727408303145,3.20464244,155.26,155.17,15.47]
[1727408303351,2.671,155.27,155.17,15.47]
[1727408303653,3.2209,155.22,155.17,15.47]
[1727408304242,3.2209,155.21,155.17,15.47]
[1727408304846,3.2208,155.22,155.17,15.47]
[1727408306848,3.2204,155.24,155.17,15.47]
[1727408307056,3.2204,155.24,155.14,3.9517]
[1727408307057,15.47,155.25,155.15,15.47]
[1727408308056,3.221,155.21,155.15,18.692]
[1727408308853,3.2212,155.2,155.15,18.692]
[1727408309057,5.9555571,155.27,155.17,15.47]
[1727408309255,0.99622397,155.26,155.17,15.47]
[1727408309556,0.99622397,155.26,155.14,3.9517]
[1727408309557,0.99622397,155.26,155.19,15.47]
[1727408309758,0.99622397,155.26,155.2,1.394]
[1727408310161,5.9555571,155.27,155.2,1.394]
[1727408310456,3.2845571,155.27,155.2,1.394]
[1727408310659,15.47,155.3,155.21,15.47]
[1727408310860,0.99603636,155.29,155.21,15.47]
[1727408311460,3.2202,155.25,155.21,15.47]
[1727408311960,2.7526,155.34,155.21,15.47]
[1727408312151,15.47,155.31,155.21,15.47]
[1727408312355,0.99599361,155.3,155.21,15.47]
[1727408312551,0.99599361,155.3,155.21,18.1558]
[1727408313450,0.99599361,155.29,155.21,18.1558]
[1727408313657,15.47,155.32,155.21,18.1558]
[1727408313851,3.22,155.26,155.21,18.1558]
[1727408314252,3.22,155.26,155.21,2.6858]
[1727408314462,3.22,155.26,155.24,9.89]
[1727408320867,3.22,155.26,155.25,9.89]
[1727408321271,2.7526,155.34,155.25,9.89]
[1727408321567,2.7526,155.34,155.21,2.6858]
[1727408321568,10.8858783,155.33,155.29,9.89]
[1727408321767,0.99574217,155.32,155.29,9.89]
[1727408321965,10.88574217,155.33,155.29,9.89]
[1727408322171,3.25260905,155.35,155.3,9.89]
[1727408322172,9.89,155.35,155.3,9.89]
[1727408322968,9.89,155.33,155.21,2.6858]
[1727408323172,9.89,155.31,155.27,9.89]
[1727408324265,9.89,155.31,155.21,5.9066]
[1727408324266,3.2197,155.27,155.21,5.9066]
[1727408324470,3.2197,155.27,155.25,9.89]
[1727408324865,3.2196,155.28,155.25,9.89]
[1727408325068,3.2196,155.28,155.26,9.89]
[1727408325465,3.2196,155.28,155.22,3.2207]
[1727408325466,3.2196,155.28,155.27,9.89]
[1727408326073,5.91612122,155.4,155.27,9.89]
[1727408326272,9.89,155.36,155.33,9.89]
[1727408326469,0.9955629,155.35,155.31,9.89]
[1727408326670,3.2183,155.34,155.31,9.89]
[1727408327074,9.89,155.36,155.31,9.89]
[1727408327279,9.89,155.36,155.28,1.3889]
[1727408327280,0.99531777,155.35,155.32,9.89]
[1727408327470,9.89,155.37,155.32,9.89]